bitfinex/quotes_SOLUSD_20241013
["timestamp","ask_amount","ask_price","bid_price","bid_amount"]
[1728839122911,7.6547167,146.45,146.4,6.8304]
[1728839123208,7.6547167,146.45,146.4,8.19627069]
[1728839123383,7.6547167,146.45,146.4,6.8304]
[1728839124508,0.8261167,146.45,146.4,6.8304]
[1728839124710,6.8287,146.44,146.4,6.8304]
[1728839125714,6.8293,146.43,146.39,23.908]
[1728839129786,6.8293,146.43,146.39,17.0771]
[1728839130815,6.8293,146.43,146.39,23.9081]
[1728839131025,6.8293,146.43,146.39,25.27410663]
[1728839133018,6.8288,146.44,146.39,25.27410663]
[1728839133222,6.8288,146.44,146.4,6.8304]
[1728839136193,6.8288,146.44,146.39,23.908]
[1728839138225,6.8288,146.44,146.4,6.8305]
[1728839141321,6.8288,146.44,146.39,17.0771]
[1728839141503,6.8288,146.44,146.39,23.908]
[1728839144313,6.8288,146.44,146.4,1.36591611]
[1728839144614,6.8288,146.44,146.39,23.908]
[1728839147711,0.8261167,146.45,146.42,6.8293]
[1728839147913,0.8261167,146.45,146.42,8.19493515]
[1728839148227,0.8261167,146.45,146.43,6.8291]
[1728839148727,0.8261167,146.45,146.44,8.19425092]
[1728839150326,0.8261167,146.45,146.44,6.8287]
[1728839151930,0.8261167,146.45,146.43,23.9018]
[1728839153445,0.8261167,146.45,146.44,1.36553938]
[1728839155542,0.8261167,146.45,146.44,8.19423938]
[1728839158031,0.8261167,146.45,146.44,30.605584]
[1728839158418,0.8261167,146.45,146.44,41.91710153]
[1728839161249,0.8261167,146.45,146.44,6.8287]
[1728839164350,0.8261167,146.45,146.44,8.19406211]
[1728839165214,0.8261167,146.45,146.44,6.8287]
[1728839167247,0.8261167,146.45,146.44,8.19400042]
[1728839167848,0.8261167,146.45,146.44,6.8287]
[1728839168250,0.8261167,146.45,146.44,8.19400081]
[1728839169243,0.8261167,146.45,146.44,43.28240234]
[1728839169740,0.8261167,146.45,146.44,41.91710153]
[1728839171056,0.8261167,146.45,146.44,6.8287]
[1728839171218,0.8261167,146.45,146.44,31.9708862]
[1728839171552,0.8261167,146.45,146.44,43.28240373]
[1728839171846,0.8261167,146.45,146.44,30.605584]
[1728839176354,0.8261167,146.45,146.44,31.97082343]
[1728839179242,0.8261167,146.45,146.44,30.605584]
[1728839181359,0.8261167,146.45,146.44,31.97082842]
[1728839182058,0.8261167,146.45,146.44,30.605584]
[1728839185260,0.8261167,146.45,146.44,41.91710153]
[1728839185463,0.8261167,146.45,146.44,43.28227105]
[1728839186354,0.8261167,146.45,146.44,41.91710153]
[1728839187168,0.8261167,146.45,146.44,30.605584]
[1728839204577,0.8261167,146.45,146.44,6.8287]
[1728839205763,0.8261167,146.45,146.43,23.9017]
[1728839205979,0.8261167,146.45,146.43,17.0727]
[1728839206359,0.8261167,146.45,146.41,6.83]
[1728839207262,0.8261167,146.45,146.4,17.0758]
[1728839207460,0.8261167,146.45,146.42,6.8296]
[1728839208482,6.8288,146.44,146.4,17.0758]
[1728839208684,0.8261167,146.45,146.41,8.1958257]
[1728839209062,0.8261167,146.45,146.41,6.83]
[1728839209462,7.6544167,146.45,146.41,6.83]
[1728839209874,7.6544167,146.45,146.4,17.0758]
[1728839210179,7.6544167,146.45,146.4,23.9062]
[1728839210675,7.6544167,146.45,146.4,17.0758]
[1728839210676,6.8287,146.44,146.4,17.0758]
[1728839210997,6.8287,146.44,146.4,23.9063]
[1728839211391,15.3234,146.44,146.4,17.0758]
[1728839211595,6.8292,146.43,146.36,25.2623032]
[1728839211803,6.8298,146.42,146.38,6.8313]
[1728839212102,6.8302,146.41,146.37,23.9111]
[1728839212604,15.3234,146.39,146.34,17.0832]
[1728839212895,6.8316,146.38,146.34,17.0832]
[1728839213988,13.4547,146.37,146.33,6.8338]
[1728839214595,13.4547,146.37,146.32,6.8342]
[1728839214894,6.8324,146.36,146.32,6.8342]
[1728839216299,13.4547,146.37,146.32,6.8342]
[1728839216685,6.6227,146.37,146.31,17.0864]
[1728839217778,6.8331,146.35,146.31,17.0864]
[1728839220707,6.8339,146.33,146.29,6.8356]
[1728839221180,6.5255,146.32,146.26,6.8369]
[1728839221383,6.5255,146.32,146.25,17.0937]
[1728839221692,6.8356,146.3,146.25,23.9312]
[1728839222801,6.8358,146.29,146.25,17.0937]
[1728839223194,6.8362,146.28,146.24,6.838]
[1728839223382,22.2315,146.28,146.23,6.8384]
[1728839224699,15.3953,146.28,146.25,6.8374]
[1728839233200,15.3953,146.28,146.24,23.9323]
[1728839233602,22.2316,146.28,146.24,17.0944]
[1728839233925,22.2316,146.28,146.24,23.9323]
[1728839234300,15.3953,146.28,146.24,23.9323]
[1728839234816,15.3953,146.28,146.25,6.8374]
[1728839235504,29.6153,146.32,146.27,6.8366]
[1728839235704,6.8348,146.31,146.27,6.8366]
[1728839235931,6.8348,146.31,146.26,23.9294]
[1728839236632,6.8353,146.3,146.26,23.9294]
[1728839241835,22.7809,146.32,146.28,6.8362]
[1728839242041,29.6155,146.32,146.28,6.8362]
[1728839242717,6.8348,146.31,146.27,6.8365]
[1728839247425,29.6153,146.32,146.27,8.20372237]
[1728839247727,29.6153,146.32,146.28,6.8361]
[1728839249258,6.8348,146.31,146.27,6.8365]
[1728839249853,22.7809,146.32,146.26,23.9294]
[1728839249854,6.8353,146.3,146.26,23.9294]
[1728839250848,23.776884,146.31,146.23,17.0954]
[1728839251050,6.8362,146.28,146.24,6.8379]
[1728839256171,6.8362,146.28,146.23,23.9338]
[1728839256773,6.8362,146.28,146.24,6.838]
[1728839256974,6.8362,146.28,146.23,23.9339]
[1728839259286,6.8358,146.29,146.23,17.0954]
[1728839259587,6.8358,146.29,146.25,6.8375]
[1728839261675,6.8353,146.3,146.26,6.837]
[1728839261985,29.6153,146.32,146.27,6.8362]
[1728839263672,29.6153,146.32,146.28,6.836]
[1728839266986,6.8338,146.33,146.29,6.8357]
[1728839268898,6.8338,146.33,146.28,6.836]
[1728839269208,17.083,146.35,146.28,6.836]
[1728839269503,6.8344,146.32,146.28,6.836]
[1728839272081,6.8348,146.31,146.27,23.9275]
[1728839272472,6.8353,146.3,146.27,17.091]
[1728839272780,6.8358,146.29,146.25,6.8374]
[1728839272978,6.8364,146.28,146.24,23.9323]
[1728839273181,16.1275,146.31,146.2,15.5481]
[1728839273182,23.776884,146.3,146.2,15.5481]
[1728839273396,6.8369,146.27,146.22,6.8386]
[1728839275304,16.1275,146.31,146.21,1.36771741]
[1728839275604,6.8354,146.3,146.25,6.8372]
[1728839275812,22.9627,146.31,146.26,6.8367]
[1728839276107,6.8355,146.3,146.26,6.8367]
[1728839276605,6.8355,146.3,146.25,17.0935]
[1728839276813,6.8355,146.3,146.25,23.931]
[1728839277389,6.8358,146.29,146.25,23.931]
[1728839279407,22.9626,146.31,146.26,6.8367]
[1728839280612,16.1275,146.31,146.26,6.8367]
[1728839280785,6.8355,146.3,146.26,6.8367]
[1728839283482,6.8355,146.3,146.25,23.9309]
[1728839285317,6.836,146.29,146.25,17.0935]
[1728839285517,6.836,146.29,146.25,23.9309]
[1728839286508,6.836,146.29,146.25,17.0935]
[1728839291323,6.836,146.29,146.25,23.9309]
[1728839292501,6.8353,146.3,146.26,6.837]
[1728839292704,22.9626,146.31,146.26,6.837]
[1728839293012,22.9626,146.31,146.27,6.8365]
[1728839293218,6.8351,146.31,146.27,6.8365]
[1728839303027,13.1057,146.32,146.28,6.836]
[1728839303597,6.8344,146.32,146.28,6.836]
[1728839303797,6.8344,146.32,146.27,17.0912]
[1728839304002,6.8344,146.32,146.27,23.9277]
[1728839307132,6.8344,146.32,146.28,6.8361]
[1728839308126,22.4172,146.34,146.3,6.8349]
[1728839308315,22.4172,146.34,146.29,23.9242]
[1728839309330,6.8339,146.33,146.29,23.9242]
[1728839310106,22.4171,146.34,146.29,23.9242]
[1728839312910,6.8338,146.33,146.29,23.9242]
[1728839327736,22.4172,146.34,146.3,6.8352]
[1728839328141,6.8331,146.35,146.31,6.8346]
[1728839330444,6.8325,146.36,146.31,6.8346]
[1728839331626,6.8329,146.35,146.31,6.8346]
[1728839334245,6.8326,146.36,146.31,6.8346]
[1728839334537,6.8326,146.36,146.32,6.8342]
[1728839335929,6.8326,146.36,146.31,23.9211]
[1728839339238,6.8315,146.38,146.34,6.833]
[1728839339429,6.29,146.39,146.33,17.0839]
[1728839339746,6.8325,146.36,146.32,6.8342]
[1728839340037,6.8325,146.36,146.3,32.6814]
[1728839340237,6.8334,146.34,146.3,23.9226]
[1728839340442,6.833,146.35,146.3,23.9226]
[1728839342145,6.8326,146.36,146.32,6.8341]
[1728839342549,6.832,146.37,146.32,6.8341]
[1728839342749,6.832,146.37,146.33,6.8338]
[1728839343245,6.832,146.37,146.32,6.8341]
[1728839343550,22.5556,146.38,146.34,6.8333]
[1728839346952,6.8312,146.39,146.33,1.36659334]
[1728839347130,6.8312,146.39,146.35,6.8328]
[1728839347327,6.8306,146.4,146.36,6.8321]
[1728839348133,30.607084,146.41,146.36,6.8321]
[1728839349344,6.8302,146.41,146.37,6.8317]
[1728839349539,6.8302,146.41,146.36,23.9129]
[1728839352642,6.8302,146.41,146.36,17.0806]
[1728839352840,6.8302,146.41,146.37,6.8319]
[1728839356168,6.8297,146.42,146.38,6.8314]
[1728839356968,6.8296,146.43,146.38,6.8313]
[1728839360462,6.8287,146.44,146.4,6.8305]
[1728839360643,6.8287,146.44,146.39,1.3661561]
[1728839360644,0.8261167,146.45,146.39,1.3661561]
[1728839360844,7.6544167,146.45,146.41,6.8301]
[1728839362649,0.8261167,146.45,146.42,6.8292]
[1728839371957,0.8261167,146.45,146.41,6.83]
[1728839373754,0.8261167,146.45,146.41,8.19577918]
[1728839374276,0.8261167,146.45,146.4,17.076]
[1728839374474,0.8261167,146.45,146.42,6.8293]
[1728839376068,0.8261167,146.45,146.41,6.83]
[1728839376985,0.8261167,146.45,146.41,8.19576181]
[1728839379570,0.8261167,146.45,146.41,6.83]
[1728839383083,0.8261167,146.45,146.41,8.19575886]
[1728839383265,6.8289,146.44,146.4,23.9064]
[1728839386393,6.8289,146.44,146.41,1.36587717]
[1728839386767,6.8289,146.44,146.4,23.9064]
[1728839387396,6.8289,146.44,146.41,1.36587644]
[1728839390190,0.8261167,146.45,146.41,1.36587644]
[1728839390396,7.6544167,146.45,146.41,8.19597644]
[1728839397605,7.6544167,146.45,146.41,6.8301]
[1728839401207,0.8261167,146.45,146.42,1.36576537]
[1728839401887,0.8261167,146.45,146.43,6.8291]
[1728839402406,0.8261167,146.45,146.43,8.19470058]
[1728839404291,0.8261167,146.45,146.44,6.8287]
[1728839405406,0.8261167,146.45,146.44,18.14021753]
[1728839405706,0.8261167,146.45,146.44,41.91710153]
[1728839406706,0.8261167,146.45,146.44,6.8287]
[1728839414390,0.8261167,146.45,146.43,6.829]
[1728839416088,0.8261167,146.45,146.44,8.19435982]
[1728839416298,0.8261167,146.45,146.44,6.8287]
[1728839436331,0.8261167,146.45,146.44,18.14021753]
[1728839436504,0.8261167,146.45,146.44,41.91710153]
[1728839437221,0.8261167,146.45,146.44,78.18170153]
[1728839437720,15.2333,146.53,146.51,6.8252]
[1728839437924,6.1721,146.55,146.51,6.8252]
[1728839439706,6.1721,146.55,146.5,17.0642]
[1728839439902,6.8248,146.53,146.48,6.8265]
[1728839440806,6.8248,146.53,146.47,51.2045]
[1728839441019,6.8248,146.53,146.49,6.8263]
[1728839443107,6.8241,146.54,146.5,6.8258]
[1728839445233,15.2333,146.57,146.54,17.0595]
[1728839445910,0.8261167,146.59,146.54,17.0595]
[1728839446110,0.8261167,146.59,146.57,6.8224]
[1728839446335,0.8261167,146.59,146.58,6.8222]
[1728839450035,0.8261167,146.59,146.57,6.8226]
[1728839450239,0.8261167,146.59,146.56,17.057]
[1728839450840,0.8261167,146.59,146.56,23.88]
[1728839452341,0.8261167,146.59,146.57,1.36440984]
[1728839452720,0.8261167,146.59,146.56,23.88]
[1728839453638,0.8261167,146.59,146.56,17.057]
[1728839454128,0.8261167,146.59,146.54,6.8237]
[1728839454129,7.6479167,146.59,146.54,6.8237]
[1728839454515,0.8261167,146.59,146.55,18.42297385]
[1728839454934,0.8261167,146.59,146.55,17.0584]
[1728839455236,0.8261167,146.59,146.56,6.823]
[1728839457132,0.8261167,146.59,146.56,8.18745219]
[1728839457323,0.8261167,146.59,146.56,6.823]
[1728839458014,0.8261167,146.59,146.56,8.18738499]
[1728839461639,0.8261167,146.59,146.55,23.8816]
[1728839462918,0.8261167,146.59,146.56,8.18728237]
[1728839463115,0.8261167,146.59,146.58,6.8222]
[1728839463342,0.8261167,146.59,146.58,19.49785987]
[1728839464459,0.8261167,146.59,146.58,18.13371753]
[1728839465250,0.8261167,146.59,146.58,6.8222]
[1728839465546,0.8261167,146.59,146.58,18.13371753]
[1728839466625,0.8261167,146.59,146.58,6.8222]
[1728839467232,0.8261167,146.59,146.58,18.13371753]
[1728839468241,0.8261167,146.59,146.58,19.49770176]
[1728839468446,0.8261167,146.59,146.58,18.13371753]
[1728839471751,0.8261167,146.59,146.57,17.0561]
[1728839472053,0.8261167,146.59,146.58,8.18642209]
[1728839472352,0.8261167,146.59,146.58,6.8222]
[1728839474037,0.8261167,146.59,146.57,23.8786]
[1728839474351,0.8261167,146.59,146.57,17.0561]
[1728839476751,0.8261167,146.59,146.53,11.31151753]
[1728839476950,0.8261167,146.59,146.55,6.8232]
[1728839477256,0.8261167,146.59,146.56,1.36432341]
[1728839477571,0.8261167,146.59,146.56,6.823]
[1728839478064,0.8261167,146.59,146.57,8.18662223]
[1728839478553,0.8261167,146.59,146.58,6.8222]
[1728839480347,0.8261167,146.59,146.57,6.8225]
[1728839481936,0.8261167,146.59,146.56,17.0572]
[1728839482239,0.8261167,146.59,146.56,23.8802]
[1728839483332,0.8261167,146.59,146.56,17.0572]
[1728839483532,0.8261167,146.59,146.56,23.8803]
[1728839483733,0.8261167,146.59,146.56,17.0572]
[1728839484158,7.6479167,146.59,146.55,6.8235]
[1728839484656,0.8261167,146.59,146.56,1.36443188]
[1728839484852,0.8261167,146.59,146.56,6.823]
[1728839485259,0.8261167,146.59,146.57,1.36435831]
[1728839485564,0.8261167,146.59,146.56,6.823]
[1728839489647,0.8261167,146.59,146.57,1.36434745]
[1728839490057,0.8261167,146.59,146.56,6.823]
[1728839491341,0.8261167,146.59,146.51,23.1649]
[1728839491543,0.8261167,146.59,146.53,6.8243]
[1728839491544,6.8225,146.58,146.53,6.8243]
[1728839492661,6.8225,146.58,146.54,6.824]
[1728839493461,7.6479167,146.59,146.54,6.824]
[1728839497943,6.8222,146.58,146.54,6.824]
[1728839498269,6.8227,146.57,146.53,6.8243]
[1728839498455,6.8231,146.56,146.52,23.8867]
[1728839498779,6.8239,146.55,146.5,6.8254]
[1728839498936,6.8239,146.55,146.49,17.0653]
[1728839499138,6.8239,146.55,146.51,6.8253]
[1728839501541,6.8232,146.56,146.52,1.36486098]
[1728839503266,6.8232,146.56,146.51,6.8253]
[1728839503973,6.8237,146.55,146.51,6.8253]
[1728839504154,6.8237,146.55,146.5,6.8257]
[1728839505465,6.8237,146.55,146.51,6.8253]
[1728839506769,30.600084,146.56,146.52,6.8249]
[1728839507070,13.479,146.57,146.53,8.18936942]
[1728839507771,13.479,146.57,146.53,6.8245]
[1728839508942,6.8228,146.57,146.53,6.8245]
[1728839511746,0.8261167,146.59,146.51,17.0631]
[1728839511949,30.599084,146.58,146.54,6.824]
[1728839514160,30.599084,146.58,146.54,8.18868003]
[1728839514366,30.599084,146.58,146.54,6.824]
[1728839514873,7.6481167,146.59,146.54,8.18868023]
[1728839518755,6.8222,146.58,146.54,8.18868023]
[1728839519155,6.8222,146.58,146.54,6.824]
[1728839519685,23.776884,146.58,146.5,17.0639]
[1728839519870,6.8227,146.57,146.53,6.8245]
[1728839520383,6.8227,146.57,146.53,8.18923452]
[1728839521670,23.776884,146.58,146.53,8.18923452]
[1728839521982,6.8223,146.58,146.54,6.824]
[1728839523480,7.6479167,146.59,146.55,6.8236]
[1728839524465,7.6479167,146.59,146.53,1.36473452]
[1728839524660,7.6479167,146.59,146.54,6.8239]
[1728839524882,6.8223,146.58,146.54,6.8239]
[1728839526856,6.8226,146.57,146.53,6.8244]
[1728839527083,6.8232,146.56,146.52,23.887]
[1728839530462,6.8227,146.57,146.53,6.8245]
[1728839530984,6.8227,146.57,146.52,17.0622]
[1728839531174,6.8227,146.57,146.52,23.887]
[1728839531770,6.8227,146.57,146.53,6.8245]
[1728839531967,6.8227,146.57,146.53,8.18922342]
[1728839532687,6.8227,146.57,146.53,6.8245]
[1728839534183,6.8227,146.57,146.53,8.18921351]
[1728839534587,6.8227,146.57,146.53,6.8245]
[1728839535490,6.8227,146.57,146.53,8.1892129]
[1728839537182,6.8227,146.57,146.53,6.8245]
[1728839538200,6.8227,146.57,146.53,8.18921225]
[1728839538405,6.8227,146.57,146.53,6.8245]
[1728839540200,6.8227,146.57,146.53,8.1892118]
[1728839540997,6.8227,146.57,146.53,1.3647118]
[1728839541208,6.8227,146.57,146.52,23.887]
[1728839547287,6.8232,146.56,146.52,23.887]
[1728839554214,0.8261167,146.59,146.53,1.36478091]
[1728839554521,6.8227,146.57,146.53,6.8241]
[1728839557520,6.8227,146.57,146.54,1.3646144]
[1728839557897,6.8223,146.58,146.54,8.18860952]
[1728839558117,6.8223,146.58,146.54,6.824]
[1728839560806,7.6479167,146.59,146.55,8.18812614]
[1728839561120,7.6479167,146.59,146.55,6.8236]
[1728839567697,0.8261167,146.59,146.54,17.0597]
[1728839567910,0.8261167,146.59,146.58,6.8222]
[1728839568308,0.8261167,146.59,146.56,17.0572]
[1728839569419,0.8261167,146.59,146.56,23.8802]
[1728839571112,0.8261167,146.59,146.57,1.36432092]
[1728839571922,0.8261167,146.59,146.58,6.8222]
[1728839574816,0.8261167,146.59,146.57,8.18673057]
[1728839575219,0.8261167,146.59,146.57,6.8225]
[1728839577728,0.8261167,146.59,146.58,8.18642934]
[1728839579323,0.8261167,146.59,146.58,6.8222]
[1728839580612,0.8261167,146.59,146.57,6.8225]
[1728839581417,0.8261167,146.59,146.58,1.36423021]
[1728839582140,0.8261167,146.59,146.57,6.8225]
[1728839583737,0.8261167,146.59,146.57,6.8226]
[1728839583944,0.8261167,146.59,146.53,23.8854]
[1728839584122,0.8261167,146.59,146.53,17.061]
[1728839584310,6.8231,146.56,146.53,17.061]
[1728839584727,6.8227,146.57,146.53,23.8854]
[1728839585122,0.8261167,146.59,146.54,1.36464806]
[1728839585324,6.8223,146.58,146.54,8.18864806]
[1728839586049,0.8261167,146.59,146.54,1.36464806]
[1728839586340,7.6480167,146.59,146.55,6.8235]
[1728839588243,0.8261167,146.59,146.56,8.18762613]
[1728839588623,0.8261167,146.59,146.57,1.36433448]
[1728839588945,0.8261167,146.59,146.55,17.0585]
[1728839590244,0.8261167,146.59,146.56,1.36429391]
[1728839590421,0.8261167,146.59,146.58,6.8222]
[1728839596240,0.8261167,146.59,146.57,6.8225]
[1728839596442,0.8261167,146.59,146.55,23.8819]
[1728839597039,7.6478167,146.59,146.55,23.8819]
[1728839597226,6.8222,146.58,146.55,17.0585]
[1728839597415,0.8261167,146.59,146.55,18.42305808]
[1728839597847,7.6481167,146.59,146.55,18.42305808]
[1728839598225,7.6481167,146.59,146.55,17.0585]
[1728839598435,6.8223,146.58,146.54,6.8239]
[1728839605838,6.8223,146.58,146.55,1.36463615]
[1728839606040,7.6480167,146.59,146.55,1.36463615]
[1728839608031,7.6480167,146.59,146.54,6.8239]
[1728839610456,0.8261167,146.59,146.54,6.8239]
[1728839610658,6.8222,146.58,146.54,6.8239]
[1728839612159,0.8261167,146.59,146.52,17.0617]
[1728839612458,0.8261167,146.59,146.53,6.8244]
[1728839612459,6.8227,146.57,146.53,6.8244]
[1728839613453,6.8223,146.58,146.53,6.8244]
[1728839615845,0.8261167,146.59,146.53,6.8244]
[1728839616167,6.8227,146.57,146.53,6.8244]
[1728839617963,22.4917,146.57,146.53,6.8244]
[1728839619253,22.4917,146.57,146.52,23.8865]
[1728839619556,6.8233,146.56,146.52,23.8865]
[1728839620245,6.8233,146.56,146.52,17.0617]
[1728839620852,6.76468789,146.56,146.52,17.0617]
[1728839623742,22.4918,146.57,146.52,18.42656985]
[1728839624746,22.4918,146.57,146.52,17.0617]
[1728839625562,22.4918,146.57,146.53,6.8245]
[1728839632271,0.8261167,146.59,146.54,17.0596]
[1728839632578,6.8222,146.58,146.54,23.8835]
[1728839636980,7.6479167,146.59,146.55,1.36460773]
[1728839637285,7.6479167,146.59,146.54,23.8835]
[1728839640350,7.6479167,146.59,146.55,6.8236]
[1728839641494,0.8261167,146.59,146.54,17.0596]
[1728839641784,6.8228,146.57,146.54,17.0596]
[1728839642161,6.8223,146.58,146.54,17.0596]
[1728839643063,7.6479167,146.59,146.55,6.8236]
[1728839645686,0.8261167,146.59,146.56,18.42206964]
[1728839647368,0.8261167,146.59,146.58,6.8222]
[1728839651085,0.8261167,146.59,146.57,6.8225]
[1728839656788,0.8261167,146.59,146.57,8.18682917]
[1728839656966,0.8261167,146.59,146.57,6.8225]
[1728839658686,0.8261167,146.59,146.57,8.18683036]
[1728839660176,0.8261167,146.59,146.58,6.8222]
[1728839660491,0.8261167,146.59,146.58,18.13371753]
[1728839662076,0.8261167,146.59,146.58,6.8222]
[1728839665692,0.8261167,146.59,146.57,1.36420199]
[1728839665906,0.8261167,146.59,146.57,6.8226]
[1728839666495,0.8261167,146.59,146.56,23.8804]
[1728839668695,6.8225,146.58,146.53,23.8856]
[1728839668893,6.8225,146.58,146.53,17.0612]
[1728839669075,6.8225,146.58,146.54,6.824]
[1728839673401,6.8225,146.58,146.53,17.0612]
[1728839673585,6.8225,146.58,146.54,1.36465982]
[1728839674106,6.8226,146.57,146.54,1.36465982]
[1728839676408,0.8261167,146.59,146.54,1.36465982]
[1728839676622,6.8223,146.58,146.54,8.18855982]
[1728839676903,5.8223,146.58,146.54,6.8239]
[1728839677287,0.8261167,146.59,146.55,1.36457412]
[1728839677494,7.6479167,146.59,146.54,8.18847121]
[1728839679609,7.6479167,146.59,146.54,6.8239]
[1728839679907,6.8223,146.58,146.54,6.8239]
[1728839680283,6.8223,146.58,146.54,8.18847626]
[1728839680486,6.8223,146.58,146.54,6.8239]
[1728839683093,7.6479167,146.59,146.55,6.8232]
[1728839683818,0.8261167,146.59,146.56,6.823]
[1728839683997,0.8261167,146.59,146.57,6.8225]
[1728839684311,0.8261167,146.59,146.56,8.18731863]
[1728839687024,0.8261167,146.59,146.56,6.8229]
[1728839688714,0.8261167,146.59,146.56,8.18729914]
[1728839691127,0.8261167,146.59,146.57,8.18699936]
[1728839692308,0.8261167,146.59,146.58,6.8222]
[1728839693514,0.8261167,146.59,146.58,18.13371753]
[1728839693822,0.8261167,146.59,146.58,6.8222]
[1728839694399,0.8261167,146.59,146.58,8.18616927]
[1728839697033,0.8261167,146.59,146.58,6.8222]
[1728839699827,0.8261167,146.59,146.58,8.18616434]
[1728839700136,0.8261167,146.59,146.58,6.8222]
[1728839700328,0.8261167,146.59,146.58,8.18616456]
[1728839701135,0.8261167,146.59,146.58,19.49768209]
[1728839701311,0.8261167,146.59,146.58,18.13371753]
[1728839701517,0.8261167,146.59,146.58,43.27443668]
[1728839701903,0.8261167,146.59,146.58,63.27443668]
[1728839704224,0.8261167,146.59,146.58,61.91060153]
[1728839704814,0.8261167,146.59,146.58,6.8222]
[1728839705010,0.8261167,146.59,146.58,8.18631174]
[1728839706040,0.8261167,146.59,146.58,6.8222]
[1728839706410,0.8261167,146.59,146.57,23.8788]
[1728839706724,0.8261167,146.59,146.57,17.0563]
[1728839706922,0.8261167,146.59,146.58,6.8222]
[1728839707813,0.8261167,146.59,146.57,23.8788]
[1728839708516,0.8261167,146.59,146.57,17.0563]
[1728839708714,0.8261167,146.59,146.55,34.1177]
[1728839708715,0.8261167,146.59,146.55,6.8232]
[1728839710034,0.8261167,146.59,146.56,8.18739894]
[1728839710437,0.8261167,146.59,146.56,6.823]
[1728839712325,0.8261167,146.59,146.57,1.36439868]
[1728839712533,0.8261167,146.59,146.56,6.823]
[1728839720040,7.6479167,146.59,146.55,6.8232]
[1728839721650,7.6479167,146.59,146.55,8.1876996]
[1728839723548,0.8261167,146.59,146.56,6.823]
[1728839723942,0.8261167,146.59,146.55,8.1878996]
[1728839725237,0.8261167,146.59,146.55,1.3644996]
[1728839725552,0.8261167,146.59,146.56,6.8229]
[1728839726455,0.8261167,146.59,146.57,1.36439808]
[1728839726749,0.8261167,146.59,146.58,6.8222]
[1728839727857,0.8261167,146.59,146.58,36.8222]
[1728839728350,0.8261167,146.59,146.57,6.8225]
[1728839728657,0.8261167,146.59,146.58,8.1864042]
[1728839728953,0.8261167,146.59,146.58,6.8222]
[1728839731043,0.8261167,146.59,146.58,19.49771313]
[1728839731239,0.8261167,146.59,146.58,63.27459713]
[1728839731461,10.0,146.67,146.66,6.8184]
[1728839731840,10.0,146.67,146.66,8.18176416]
[1728839732169,10.0,146.67,146.66,6.8184]
[1728839732333,10.0,146.67,146.66,38.18180137]
[1728839733145,10.0,146.67,146.66,36.8184]
[1728839733349,10.0,146.67,146.66,30.0]
[1728839733560,10.0,146.67,146.65,23.8653]
[1728839733863,10.0,146.67,146.66,6.8184]
[1728839734268,10.0,146.67,146.65,17.0468]
[1728839734445,10.0,146.67,146.65,23.8656]
[1728839734644,10.0,146.67,146.65,17.0468]
[1728839735659,10.0,146.67,146.65,23.8656]
[1728839736633,10.0,146.67,146.65,17.0468]
[1728839737668,10.0,146.67,146.61,17.0511]
[1728839737861,23.776884,146.66,146.61,17.0511]
[1728839738166,6.82,146.63,146.58,23.8771]
[1728839738354,6.8195,146.64,146.59,6.8216]
[1728839738556,6.8189,146.65,146.6,8.18501841]
[1728839738737,10.0,146.67,146.6,8.18501841]
[1728839738738,10.0,146.67,146.64,6.8192]
[1728839739862,10.0,146.67,146.65,6.8188]
[1728839742937,10.0,146.67,146.66,8.18193416]
[1728839743444,10.0,146.67,146.66,6.8184]
[1728839746263,10.0,146.67,146.66,8.1819165]
[1728839749370,10.0,146.67,146.66,6.8184]
[1728839750648,10.0,146.67,146.66,8.18193223]
[1728839751275,10.0,146.67,146.66,6.8184]
[1728839754173,10.0,146.67,146.65,23.8656]
[1728839754669,10.0,146.67,146.66,1.36354708]
[1728839754981,10.0,146.67,146.66,8.18194708]
[1728839755475,10.0,146.67,146.66,6.8184]